fUST/lending_fUST_20250202
["ID","MTS","AMOUNT","RATE_DAILY","PERIOD"]
[351291991,1738506762595,-500.0,0.00016438,2]
[351291992,1738506762626,-500.0,0.00016438,2]
[351291993,1738506762656,-501.13974454,0.00016438,2]
[351291994,1738506762687,-154.07367525,0.00016438,2]
[351291995,1738506762715,-500.0,0.00016438,2]
[351291996,1738506762747,-500.0,0.00016438,2]
[351291997,1738506762779,-500.0,0.00016438,2]
[351291998,1738506762811,-500.0,0.00016438,2]
[351291999,1738506762842,-507.16011455,0.00016438,2]
[351292000,1738506762872,-500.0,0.00016438,2]
[351292001,1738506762901,-500.0,0.00016438,2]
[351292002,1738506762931,-500.0,0.00016438,2]
[351292003,1738506762962,-500.0,0.00016438,2]
[351292004,1738506762991,-500.0,0.00016438,2]
[351292005,1738506763021,-500.0,0.00016438,2]
[351292006,1738506763052,-500.0,0.00016438,2]
[351292007,1738506763083,-500.0,0.00016438,2]
[351292008,1738506763111,-500.0,0.00016438,2]
[351292009,1738506763140,-500.0,0.00016438,2]
[351292010,1738506763169,-500.0,0.00016438,2]
[351292011,1738506763198,-500.0,0.00016438,2]
[351292012,1738506763227,-500.0,0.00016438,2]
[351292013,1738506763256,-500.0,0.00016438,2]
[351292014,1738506763284,-500.0,0.00016438,2]
[351292015,1738506763314,-500.0,0.00016438,2]
[351292016,1738506763342,-500.0,0.00016438,2]
[351292017,1738506763370,-500.0,0.00016438,2]
[351292018,1738506763494,-500.0,0.00016438,2]
[351292019,1738506763522,-506.25822849,0.00016438,2]
[351292020,1738506763550,-540.92187827,0.00016438,2]
[351292021,1738506763579,-500.0,0.00016438,2]
[351292022,1738506763608,-500.0,0.00016438,2]
[351292023,1738506763635,-503.00526443,0.00016438,2]
[351292024,1738506763662,-500.0,0.00016438,2]
[351292025,1738506763690,-500.0,0.00016438,2]
[351292026,1738506763718,-500.0,0.00016438,2]
[351292027,1738506763744,-170.76360481,0.00016438,2]
[351292028,1738506763771,-500.0,0.00016438,2]
[351292029,1738506763798,-500.0,0.00016438,2]
[351292030,1738506763825,-500.0,0.00016438,2]
[351292031,1738506763852,-500.0,0.00016438,2]
[351292032,1738506763879,-500.0,0.00016438,2]
[351292033,1738506763903,-500.0,0.00016438,2]
[351292034,1738506763927,-500.0,0.00016438,2]
[351292035,1738506763951,-500.0,0.00016438,2]
[351292036,1738506763980,-500.0,0.00016438,2]
[351292037,1738506764008,-206.38875786,0.00016438,2]
[351292038,1738506764028,-293.61124214,0.00016438,2]
[351292039,1738506764038,-206.38875786,0.00016438,2]
[351292040,1738506764061,-161.458,0.00016438,2]
[351292041,1738506764114,-132.15324214,0.00016438,2]
[351292042,1738506764133,-500.0,0.00016438,2]
[351292043,1738506764155,-500.0,0.00016438,2]
[351292044,1738506764179,-157.92186826,0.00016438,2]
[351292045,1738506764206,-342.07813174,0.00016438,2]
[351292046,1738506764230,-63.27295249,0.00016438,2]
[351292047,1738506764268,-300.0,0.00016438,2]
[351292048,1738506764296,-136.72704751,0.00016438,2]
[351292049,1738506764319,-151.0,0.00016438,2]
[351292050,1738506764342,-151.0,0.00016438,2]
[351292051,1738506764364,-151.0,0.00016438,2]
[351292052,1738506764385,-151.0,0.00016438,2]
[351292053,1738506764395,-215.284245,0.00016438,2]
[351292054,1738506764404,-500.0,0.00016438,2]
[351292055,1738506764414,-500.0,0.00016438,2]
[351292056,1738506764423,-500.0,0.00016438,2]
[351292057,1738506764432,-500.0,0.00016438,2]
[351292058,1738506764441,-500.0,0.00016438,2]
[351292059,1738506764451,-500.0,0.00016438,2]
[351292060,1738506764460,-151.0,0.00016438,2]
[351292061,1738506764469,-606.76509136,0.00016438,2]
[351292062,1738506764478,-151.0,0.00016438,2]
[351292063,1738506764488,-151.0,0.00016438,2]
[351292064,1738506764497,-151.0,0.00016438,2]
[351292065,1738506764507,-151.0,0.00016438,2]
[351292066,1738506764516,-151.0,0.00016438,2]
[351292067,1738506764525,-500.0,0.00016438,2]
[351292068,1738506764534,-151.0,0.00016438,2]
[351292069,1738506764544,-151.0,0.00016438,2]
[351292070,1738506764553,-500.0,0.00016438,2]
[351292071,1738506764563,-151.0,0.00016438,2]
[351292072,1738506764573,-151.0,0.00016438,2]
[351292073,1738506764582,-500.0,0.00016438,2]
[351292074,1738506764592,-255.53038496,0.00016438,2]
[351292075,1738506764602,-500.0,0.00016438,2]
[351292076,1738506764611,-500.0,0.00016438,2]
[351292077,1738506764621,-500.0,0.00016438,2]
[351292078,1738506764631,-500.0,0.00016438,2]
[351292079,1738506764640,-505.69225249,0.00016438,2]
[351292080,1738506764650,-500.0,0.00016438,2]
[351292081,1738506764659,-500.0,0.00016438,2]
[351292082,1738506764669,-576.3,0.00016438,2]
[351292083,1738506764678,-366.00791158,0.00016438,2]
[351292084,1738506764688,-507.71800672,0.00016438,2]
[351292085,1738506764697,-500.0,0.00016438,2]
[351292086,1738506764707,-500.0,0.00016438,2]
[351292087,1738506764716,-500.0,0.00016438,2]
[351292088,1738506764726,-151.0,0.00016438,2]
[351292089,1738506764735,-500.0,0.00016438,2]
[351292090,1738506764744,-151.0,0.00016438,2]
[351292091,1738506764754,-151.0,0.00016438,2]
[351292092,1738506764763,-151.0,0.00016438,2]
[351292093,1738506764773,-151.0,0.00016438,2]
[351292094,1738506764782,-151.0,0.00016438,2]
[351292095,1738506764792,-151.0,0.00016438,2]
[351292096,1738506764801,-151.0,0.00016438,2]
[351292097,1738506764811,-151.0,0.00016438,2]
[351292098,1738506764820,-472.19035724,0.00016438,2]
[351292099,1738506764829,-151.0,0.00016438,2]
[351292100,1738506764839,-500.0,0.00016438,2]
[351292101,1738506764848,-151.0,0.00016438,2]
[351292102,1738506764861,-250.703377,0.00016438,2]
[351292103,1738506764871,-500.0,0.00016438,2]
[351292104,1738506764882,-500.0,0.00016438,2]
[351292105,1738506764892,-500.0,0.00016438,2]
[351292106,1738506764902,-500.0,0.00016438,2]
[351292107,1738506764912,-500.0,0.00016438,2]
[351292108,1738506764921,-500.0,0.00016438,2]
[351292109,1738506764931,-500.0,0.00016438,2]
[351292110,1738506764942,-500.0,0.00016438,2]
[351292111,1738506764952,-176.10684108,0.00016438,2]
[351292112,1738506764967,-500.0,0.00016438,2]
[351292113,1738506764980,-500.0,0.00016438,2]
[351292114,1738506764989,-500.0,0.00016438,2]
[351292115,1738506764998,-500.0,0.00016438,2]
[351292116,1738506765008,-500.0,0.00016438,2]
[351292117,1738506765018,-500.0,0.00016438,2]
[351292118,1738506765028,-264.1148062,0.00016438,2]
[351292119,1738506765045,-49.58130198,0.00016438,2]
[351292120,1738506765062,-153.0,0.00016438,2]
[351292121,1738506765073,-7.97732364,0.00016438,2]
[351292122,1738506765084,-145.02267636,0.00016438,2]
[351292123,1738506765096,-354.97732364,0.00016438,2]
[351292124,1738506765106,-500.0,0.00016438,2]
[351292125,1738506765116,-840.73,0.00016438,2]
[351292126,1738506765125,-999.47,0.00016438,2]
[351292127,1738506765135,-500.0,0.00016438,2]
[351292128,1738506765144,-500.0,0.00016438,2]
[351292129,1738506765154,-500.0,0.00016438,2]
[351292130,1738506765163,-500.0,0.00016438,2]
[351292131,1738506765173,-500.0,0.00016438,2]
[351292132,1738506765183,-500.0,0.00016438,2]
[351292133,1738506765194,-500.0,0.00016438,2]
[351292134,1738506765204,-500.0,0.00016438,2]
[351292135,1738506765213,-500.44963863,0.00016438,2]
[351292136,1738506765223,-500.0,0.00016438,2]
[351292137,1738506765233,-501.98094865,0.00016438,2]
[351292138,1738506765242,-500.0,0.00016438,2]
[351292139,1738506765252,-500.0,0.00016438,2]
[351292140,1738506765262,-500.0,0.00016438,2]
[351292141,1738506765272,-500.0,0.00016438,2]
[351292142,1738506765281,-500.0,0.00016438,2]
[351292143,1738506765292,-500.0,0.00016438,2]
[351292144,1738506765302,-151.0,0.00016438,2]
[351292145,1738506765311,-151.0,0.00016438,2]
[351292146,1738506765321,-155.230144,0.00016438,2]
[351292147,1738506765331,-501.21191988,0.00016438,2]
[351292148,1738506765343,-500.0,0.00016438,2]
[351292149,1738506765435,-500.0,0.00016438,2]
[351292150,1738506765444,-500.0,0.00016438,2]
[351292151,1738506765454,-500.0,0.00016438,2]
[351292152,1738506765463,-500.0,0.00016438,2]
[351292153,1738506765474,-338.54186985,0.00016438,2]
[351292154,1738506765483,-500.0,0.00016438,2]
[351292155,1738506765492,-500.0,0.00016438,2]
[351292156,1738506765501,-500.0,0.00016438,2]
[351292157,1738506765511,-500.0,0.00016438,2]
[351292158,1738506765520,-500.0,0.00016438,2]
[351292159,1738506765530,-500.0,0.00016438,2]
[351292160,1738506765539,-500.0,0.00016438,2]
[351292161,1738506765549,-500.0,0.00016438,2]
[351292162,1738506765559,-500.0,0.00016438,2]
[351292163,1738506765569,-500.0,0.00016438,2]
[351292164,1738506765579,-500.0,0.00016438,2]
[351292165,1738506765589,-583.33,0.00016438,2]
[351292166,1738506765599,-501.40536022,0.00016438,2]
[351292167,1738506765608,-500.0,0.00016438,2]
[351292168,1738506765618,-500.0,0.00016438,2]
[351292169,1738506765628,-500.0,0.00016438,2]
[351292170,1738506765638,-500.0,0.00016438,2]
[351292171,1738506765648,-315.84731929,0.00016438,2]
[351292172,1738506765658,-182.82014023,0.00016438,2]
[351292173,1738506765669,-500.0,0.00016438,2]
[351292174,1738506765679,-500.0,0.00016438,2]
[351292175,1738506765689,-500.0,0.00016438,2]
[351292176,1738506765699,-500.0,0.00016438,2]
[351292177,1738506765709,-500.0,0.00016438,2]
[351292178,1738506765719,-246.07184592,0.00016438,2]
[351292179,1738506765728,-151.0,0.00016438,2]
[351292180,1738506765738,-151.0,0.00016438,2]
[351292181,1738506765748,-151.0,0.00016438,2]
[351292182,1738506765757,-151.0,0.00016438,2]
[351292183,1738506765767,-151.0,0.00016438,2]
[351292184,1738506765777,-500.0,0.00016438,2]
[351292185,1738506765787,-151.0,0.00016438,2]
[351292186,1738506765797,-228.279158,0.00016438,2]
[351292187,1738506765808,-500.0,0.00016438,2]
[351292188,1738506765818,-500.0,0.00016438,2]
[351292189,1738506765828,-544.8231275,0.00016438,2]
[351292190,1738506765837,-500.0,0.00016438,2]
[351292191,1738506765847,-500.0,0.00016438,2]
[351292192,1738506765857,-500.0,0.00016438,2]
[351292193,1738506765866,-229.68044973,0.00016438,2]
[351292194,1738506765875,-511.629958,0.00016438,2]
[351292195,1738506765885,-500.0,0.00016438,2]
[351292196,1738506765894,-500.0,0.00016438,2]
[351292197,1738506765904,-500.0,0.00016438,2]
[351292198,1738506765913,-508.24048055,0.00016438,2]
[351292199,1738506765923,-500.0,0.00016438,2]
[351292200,1738506765932,-510.40136102,0.00016438,2]
[351292201,1738506765942,-500.0,0.00016438,2]
[351292202,1738506765953,-500.0,0.00016438,2]
[351292203,1738506765964,-151.0,0.00016438,2]
[351292204,1738506765973,-151.0,0.00016438,2]
[351292205,1738506765983,-500.0,0.00016438,2]
[351292206,1738506765994,-500.0,0.00016438,2]
[351292207,1738506766004,-500.0,0.00016438,2]
[351292208,1738506766013,-500.0,0.00016438,2]
[351292209,1738506766023,-500.0,0.00016438,2]
[351292210,1738506766033,-500.0,0.00016438,2]
[351292211,1738506766044,-500.0,0.00016438,2]
[351292212,1738506766054,-500.0,0.00016438,2]
[351292213,1738506766063,-500.0,0.00016438,2]
[351292214,1738506766073,-500.0,0.00016438,2]
[351292215,1738506766082,-500.0,0.00016438,2]
[351292216,1738506766092,-500.0,0.00016438,2]
[351292217,1738506766101,-500.0,0.00016438,2]
[351292218,1738506766111,-500.0,0.00016438,2]
[351292219,1738506766120,-500.0,0.00016438,2]
[351292220,1738506766131,-500.0,0.00016438,2]
[351292221,1738506766140,-500.0,0.00016438,2]
[351292222,1738506766150,-500.0,0.00016438,2]
[351292223,1738506766158,-500.0,0.00016438,2]
[351292224,1738506766168,-500.0,0.00016438,2]
[351292225,1738506766177,-500.0,0.00016438,2]
[351292226,1738506766187,-500.0,0.00016438,2]
[351292227,1738506766197,-573.66213211,0.00016438,2]
[351292228,1738506766208,-500.0,0.00016438,2]
[351292229,1738506766217,-500.0,0.00016438,2]
[351292230,1738506766227,-500.0,0.00016438,2]
[351292231,1738506766236,-500.0,0.00016438,2]
[351292232,1738506766246,-500.0,0.00016438,2]
[351292233,1738506766255,-500.0,0.00016438,2]
[351292234,1738506766264,-500.0,0.00016438,2]
[351292235,1738506766274,-500.0,0.00016438,2]
[351292236,1738506766283,-500.0,0.00016438,2]
[351292237,1738506766294,-500.0,0.00016438,2]
[351292238,1738506766303,-500.0,0.00016438,2]
[351292239,1738506766312,-500.0,0.00016438,2]
[351292240,1738506766321,-500.0,0.00016438,2]
[351292241,1738506766330,-500.0,0.00016438,2]
[351292242,1738506766340,-500.0,0.00016438,2]
[351292243,1738506766349,-502.19082117,0.00016438,2]
[351292244,1738506766358,-500.0,0.00016438,2]
[351292245,1738506766368,-500.0,0.00016438,2]
[351292246,1738506766377,-500.0,0.00016438,2]
[351292247,1738506766387,-505.74745093,0.00016438,2]
[351292248,1738506766396,-500.0,0.00016438,2]
[351292249,1738506766406,-500.0,0.00016438,2]
[351292250,1738506766415,-332.29950909,0.00016438,2]
[351292251,1738506766425,-500.0,0.00016438,2]
[351292252,1738506766434,-500.0,0.00016438,2]
[351292253,1738506766444,-500.0,0.00016438,2]
[351292254,1738506766453,-500.0,0.00016438,2]
[351292255,1738506766462,-127.45029765,0.00016438,2]
[351292256,1738506766689,-376.71814692,0.00016438,2]
[351292257,1738506766698,-500.0,0.00016438,2]
[351292258,1738506766706,-500.0,0.00016438,2]
[351292259,1738506766715,-500.0,0.00016438,2]
[351292260,1738506766724,-504.42604031,0.00016438,2]
[351292261,1738506766733,-500.0,0.00016438,2]
[351292262,1738506766742,-500.0,0.00016438,2]
[351292263,1738506766751,-500.0,0.00016438,2]
[351292264,1738506766761,-500.0,0.00016438,2]
[351292265,1738506766770,-500.0,0.00016438,2]
[351292266,1738506766779,-518.52,0.00016438,2]
[351292267,1738506766865,-500.0,0.00016438,2]
[351292268,1738506766875,-500.0,0.00016438,2]
[351292269,1738506766886,-500.0,0.00016438,2]
[351292270,1738506766898,-500.0,0.00016438,2]
[351292271,1738506766908,-500.0,0.00016438,2]
[351292272,1738506766918,-500.0,0.00016438,2]
[351292273,1738506766929,-500.0,0.00016438,2]
[351292274,1738506766940,-521.5353481,0.00016438,2]
[351292275,1738506766948,-436.22487748,0.00016438,2]
[351292276,1738506766966,-63.77512252,0.00016438,2]
[351292277,1738506766974,-436.22487748,0.00016438,2]
[351292278,1738506766985,-63.77512252,0.00016438,2]
[351292279,1738506766995,-199.41471681,0.00016438,2]
[351292280,1738506767012,-179.8038455,0.00016438,2]
[351292281,1738506767024,-120.78143769,0.00016438,2]
[351292282,1738506767035,-379.21856231,0.00016438,2]
[351292283,1738506767047,-61.15041145,0.00016438,2]
[351292284,1738506767054,-129.66032796,0.00016438,2]
[351292285,1738506767065,-370.33967204,0.00016438,2]
[351292286,1738506767075,-60.38376745,0.00016438,2]
[351292287,1738506767096,-260.12197243,0.00016438,2]
[351292288,1738506767108,-171.58471046,0.00016438,2]
[351292289,1738506767118,-328.41528954,0.00016438,2]
[351292290,1738506767129,-174.41424756,0.00016438,2]
[351292291,1738506767137,-325.58575244,0.00016438,2]
[351292292,1738506767146,-178.70119329,0.00016438,2]
[351292293,1738506767153,-321.29880671,0.00016438,2]
[351292294,1738506767162,-178.70119329,0.00016438,2]
[351292295,1738506767171,-321.29880671,0.00016438,2]
[351292296,1738506767187,-190.12907331,0.00016438,2]
[351292297,1738506767197,-309.87092669,0.00016438,2]
[351292298,1738506767209,-190.12907331,0.00016438,2]
[351292299,1738506767218,-309.87092669,0.00016438,2]
[351292300,1738506767229,-192.29392596,0.00016438,2]
[351292301,1738506767238,-307.70607404,0.00016438,2]
[351292302,1738506767250,-192.29392596,0.00016438,2]
[351292303,1738506767259,-307.70607404,0.00016438,2]
[351292304,1738506767269,-192.29392596,0.00016438,2]
[351292305,1738506767279,-307.70607404,0.00016438,2]
[351292306,1738506767296,-212.80551193,0.00016438,2]
[351292307,1738506767305,-287.19448807,0.00016438,2]
[351292308,1738506767326,-212.80551193,0.00016438,2]
[351292309,1738506767336,-287.19448807,0.00016438,2]
[351292310,1738506767348,-215.36550599,0.00016438,2]
[351292311,1738506767357,-295.94620701,0.00016438,2]
[351292312,1738506767368,-204.05379299,0.00016438,2]
[351292313,1738506767379,-297.19575936,0.00016438,2]
[351292314,1738506767396,-202.80424064,0.00016438,2]
[351292315,1738506767405,-297.19575936,0.00016438,2]
[351292316,1738506767416,-202.80424064,0.00016438,2]
[351292317,1738506767426,-297.19575936,0.00016438,2]
[351292318,1738506767437,-202.80424064,0.00016438,2]
[351292319,1738506767444,-297.19575936,0.00016438,2]
[351292320,1738506767455,-202.80424064,0.00016438,2]
[351292321,1738506767465,-297.19575936,0.00016438,2]
[351292322,1738506767477,-202.80424064,0.00016438,2]
[351292323,1738506767487,-297.19575936,0.00016438,2]
[351292324,1738506767498,-202.80424064,0.00016438,2]
[351292325,1738506767504,-297.19575936,0.00016438,2]
[351292326,1738506767515,-202.80424064,0.00016438,2]
[351292327,1738506767524,-297.19575936,0.00016438,2]
[351292328,1738506767536,-202.80424064,0.00016438,2]
[351292329,1738506767546,-303.06469679,0.00016438,2]
[351292330,1738506767557,-196.93530321,0.00016438,2]
[351292331,1738506767566,-303.06469679,0.00016438,2]
[351292332,1738506767582,-196.93530321,0.00016438,2]
[351292333,1738506767592,-303.06469679,0.00016438,2]
[351292334,1738506767601,-196.93530321,0.00016438,2]
[351292335,1738506767609,-303.06469679,0.00016438,2]
[351292336,1738506767623,-500.0,0.00016438,2]
[351292337,1738506767633,-294.93530321,0.00016438,2]
[351292338,1738506767641,-127.07609659,0.00016438,2]
[351292339,1738506767651,-308.53507303,0.00016438,2]
[351292340,1738506767661,-64.38883038,0.00016438,2]
[351292341,1738506767669,-435.61116962,0.00016438,2]
[351292342,1738506767680,-64.38883038,0.00016438,2]
[351292343,1738506767690,-435.61116962,0.00016438,2]
[351292344,1738506767700,-64.38883038,0.00016438,2]
[351292345,1738506767709,-437.93327542,0.00016438,2]
[351292346,1738506767725,-62.06672458,0.00016438,2]
[351292347,1738506767735,-290.04964475,0.00016438,2]
[351292348,1738506767744,-147.88363067,0.00016438,2]
[351292349,1738506767755,-352.11636933,0.00016438,2]
[351292350,1738506767765,-147.88363067,0.00016438,2]
[351292351,1738506767776,-352.11636933,0.00016438,2]
[351292352,1738506767785,-147.88363067,0.00016438,2]
[351292353,1738506767796,-352.11636933,0.00016438,2]
[351292354,1738506767805,-147.88363067,0.00016438,2]
[351292355,1738506767814,-352.11636933,0.00016438,2]
[351292356,1738506767821,-147.88363067,0.00016438,2]
[351292357,1738506767831,-352.11636933,0.00016438,2]
[351292358,1738506767838,-150.47661901,0.00016438,2]
[351292359,1738506767849,-355.45509864,0.00016438,2]
[351292360,1738506767858,-144.54490136,0.00016438,2]
[351292361,1738506767867,-355.45509864,0.00016438,2]
[351292362,1738506767874,-144.54490136,0.00016438,2]
[351292363,1738506767901,-355.45509864,0.00016438,2]
[351292364,1738506767909,-144.54490136,0.00016438,2]
[351292365,1738506767941,-355.45509864,0.00016438,2]
[351292366,1738506767950,-231.48491956,0.00016438,2]
[351292367,1738506767966,-268.51508044,0.00016438,2]
[351292368,1738506767976,-151.0,0.00016438,2]
[351292369,1738506767985,-80.48491956,0.00016438,2]
[351292370,1738506767998,-70.51508044,0.00016438,2]
[351292371,1738506768007,-151.0,0.00016438,2]
[351292372,1738506768017,-278.48491956,0.00016438,2]
[351292373,1738506768030,-221.51508044,0.00016438,2]
[351292374,1738506768044,-151.0,0.00016438,2]
[351292375,1738506768054,-127.48491956,0.00016438,2]
[351292376,1738506768071,-23.51508044,0.00016438,2]
[351292377,1738506768081,-151.0,0.00016438,2]
[351292378,1738506768092,-225.815567,0.00016438,2]
[351292379,1738506768101,-99.66935256,0.00016438,2]
[351292380,1738506768114,-400.33064744,0.00016438,2]
[351292381,1738506768124,-99.66935256,0.00016438,2]
[351292382,1738506768136,-501.13974454,0.00016438,2]
[351292383,1738506768149,-39.4011229,0.00016438,2]
[351292384,1738506768159,-114.67255235,0.00016438,2]
[351292385,1738506768172,-500.0,0.00016438,2]
[351292386,1738506768189,-25.53766765,0.00016438,2]
[351292387,1738506768199,-474.46233235,0.00016438,2]
[351292388,1738506768212,-165.74788765,0.00016438,2]
[351292389,1738506768222,-334.25211235,0.00016438,2]
[351292390,1738506768234,-165.74788765,0.00016438,2]
[351292391,1738506768244,-334.25211235,0.00016438,2]
[351292392,1738506768262,-165.74788765,0.00016438,2]
[351292393,1738506768272,-341.4122269,0.00016438,2]
[351292394,1738506768283,-298.7979931,0.00016438,2]
[351292395,1738506768293,-201.2020069,0.00016438,2]
[351292396,1738506768306,-439.0082131,0.00016438,2]
[351292397,1738506768317,-60.9917869,0.00016438,2]
[351292398,1738506768329,-439.0082131,0.00016438,2]
[351292399,1738506768416,-60.9917869,0.00016438,2]
[351292400,1738506768432,-500.0,0.00016438,2]
[351292401,1738506768443,-79.2184331,0.00016438,2]
[351292402,1738506768453,-420.7815669,0.00016438,2]
[351292403,1738506768464,-79.2184331,0.00016438,2]
[351292404,1738506768474,-420.7815669,0.00016438,2]
[351292405,1738506768486,-219.4286531,0.00016438,2]
[351292406,1738506768496,-280.5713469,0.00016438,2]
[351292407,1738506768508,-359.6388731,0.00016438,2]
[351292408,1738506768518,-140.3611269,0.00016438,2]
[351292409,1738506768539,-359.6388731,0.00016438,2]
[351292410,1738506768549,-140.3611269,0.00016438,2]
[351292411,1738506768561,-499.8490931,0.00016438,2]
[351292412,1738506768570,-0.1509069,0.00016438,2]
[351292413,1738506768582,-500.0,0.00016438,2]
[351292414,1738506768593,-140.0593131,0.00016438,2]
[351292415,1738506768603,-359.9406869,0.00016438,2]
[351292416,1738506768615,-140.0593131,0.00016438,2]
[351292417,1738506768625,-359.9406869,0.00016438,2]
[351292418,1738506768636,-280.2695331,0.00016438,2]
[351292419,1738506768645,-219.7304669,0.00016438,2]
[351292420,1738506768657,-420.4797531,0.00016438,2]
[351292421,1738506768668,-79.5202469,0.00016438,2]
[351292422,1738506768680,-420.4797531,0.00016438,2]
[351292423,1738506768690,-79.5202469,0.00016438,2]
[351292424,1738506768703,-500.0,0.00016438,2]
[351292425,1738506768715,-60.6899731,0.00016438,2]
[351292426,1738506768724,-439.3100269,0.00016438,2]
[351292427,1738506768736,-200.9001931,0.00016438,2]
[351292428,1738506768746,-299.0998069,0.00016438,2]
[351292429,1738506768772,-341.1104131,0.00016438,2]
[351292430,1738506768783,-165.14781539,0.00016438,2]
[351292431,1738506768796,-475.06240461,0.00016438,2]
[351292432,1738506768806,-65.85947366,0.00016438,2]
[351292433,1738506768819,-500.0,0.00016438,2]
[351292434,1738506768831,-74.35074634,0.00016438,2]
[351292435,1738506768841,-425.64925366,0.00016438,2]
[351292436,1738506768854,-214.56096634,0.00016438,2]
[351292437,1738506768863,-288.44429809,0.00016438,2]
[351292438,1738506768876,-351.76592191,0.00016438,2]
[351292439,1738506768886,-148.23407809,0.00016438,2]
[351292440,1738506768899,-491.97613591,0.00016438,2]
[351292441,1738506768909,-8.02386409,0.00016438,2]
[351292442,1738506768925,-491.97613591,0.00016438,2]
[351292443,1738506768936,-8.02386409,0.00016438,2]
[351292444,1738506768956,-170.76360481,0.00016438,2]
[351292445,1738506768971,-321.2125311,0.00016438,2]
[351292446,1738506768982,-178.7874689,0.00016438,2]
[351292447,1738506768995,-321.2125311,0.00016438,2]
[351292448,1738506769006,-178.7874689,0.00016438,2]
[351292449,1738506769018,-321.2125311,0.00016438,2]
[351292450,1738506769028,-178.7874689,0.00016438,2]
[351292451,1738506769041,-321.2125311,0.00016438,2]
[351292452,1738506769053,-178.7874689,0.00016438,2]
[351292453,1738506769065,-321.2125311,0.00016438,2]
[351292454,1738506769078,-178.7874689,0.00016438,2]
[351292455,1738506769113,-321.2125311,0.00016438,2]
[351292456,1738506769148,-178.7874689,0.00016438,2]
[351292457,1738506769201,-321.2125311,0.00016438,2]
[351292458,1738506769234,-178.7874689,0.00016438,2]
[351292459,1738506769268,-321.2125311,0.00016438,2]
[351292460,1738506769279,-178.7874689,0.00016438,2]
[351292461,1738506769292,-321.2125311,0.00016438,2]
[351292462,1738506769304,-178.7874689,0.00016438,2]
[351292463,1738506769322,-321.2125311,0.00016438,2]
[351292464,1738506769333,-178.7874689,0.00016438,2]
[351293070,1738506880683,213.439831,0.00013973,2]
[351294498,1738507110462,-500.0,0.00015342,2]
[351294499,1738507110495,-645.0375552,0.00016273,2]
[351294500,1738507110524,-579.12088384,0.00016338,2]
[351294501,1738507110554,-13255.3373504,0.00016368,2]
[351294502,1738507165924,-322.5187776,0.00016273,2]
[351294503,1738507165953,-357.33897753,0.00016338,2]
[351294504,1738507166791,-26747.01897673,0.000164,2]
[351294506,1738507178870,-500.0,0.00015342,2]
[351294507,1738507178908,-35269.0,0.000164,2]
[351294511,1738507572721,250.0,0.0002,120]
[351294566,1738507838969,-250.0,0.00015433,2]
[351294567,1738507838979,-307.0,0.00016,2]
[351294568,1738507838990,-161.2593888,0.00016273,2]
[351294569,1738507839001,-506.73077336,0.00016338,2]
[351294570,1738507839012,-13113.45009402,0.00016346,2]
[351294571,1738507839022,-300.0,0.00016352,2]
[351294572,1738507839032,-7923.64591053,0.000164,2]
[351294650,1738507841345,-5214.90567709,0.000164,2]
[351294821,1738507843915,-49569.62934773,0.000164,2]
[351294841,1738507844104,-14702.18846294,0.000164,2]
[351294846,1738507844121,-55327.7952,0.000164,2]
[351294849,1738507844135,-39661.71345806,0.000164,2]
[351294854,1738507844146,-1551.10747989,0.000164,2]
[351295370,1738508019088,500.0,0.0002,120]
[351295371,1738508110298,863.92784516,0.00015311,2]